fUST/lending_fUST_20250725
["ID","MTS","AMOUNT","RATE_DAILY","PERIOD"]
[374716417,1753426247166,-277.908108,0.00021006,2]
[374716418,1753426247176,-25000.0,0.00021006,2]
[374716421,1753426247186,-460.0,0.00021133,2]
[374716423,1753426247196,-441.74850789,0.00021141,2]
[374716425,1753426247207,-560.0,0.00021162,2]
[374716427,1753426247217,-1749.0963561,0.0002121,4]
[374716429,1753426247227,-1525.17,0.00021235,2]
[374716446,1753426247375,-371.2,0.00021301,4]
[374716448,1753426247385,-585.08,0.00021347,2]
[374716450,1753426247394,-177.753477,0.0002136,2]
[374716452,1753426247404,-151.0,0.0002136,2]
[374716454,1753426247413,-151.0,0.0002136,2]
[374716456,1753426247423,-151.0,0.0002136,2]
[374716458,1753426247432,-363.164374,0.0002136,2]
[374716460,1753426247442,-363.164374,0.0002136,2]
[374716462,1753426247452,-577.7720337,0.00021385,2]
[374716464,1753426247461,-577.7720337,0.00021385,2]
[374716466,1753426247471,-1031.6854852,0.00021385,2]
[374716468,1753426247480,-393.46,0.00021407,2]
[374716470,1753426247491,-4100.37585278,0.00021421,2]
[374716472,1753426247501,-154.181505,0.00021432,2]
[374716474,1753426247511,-1749.0963561,0.00021486,5]
[374716476,1753426247521,-2219.31768029,0.000215,2]
[374716478,1753426247530,-1868.00961745,0.00021592,2]
[374716480,1753426247540,-5000.0,0.00021635,2]
[374716482,1753426247549,-700.0,0.00021703,2]
[374716484,1753426247559,-660.0,0.0002171,2]
[374716486,1753426247569,-914.65176247,0.00021739,2]
[374716488,1753426247579,-151.0,0.00021739,2]
[374716490,1753426247590,-151.0,0.00021739,2]
[374716492,1753426247600,-151.0,0.00021739,2]
[374716494,1753426247610,-230.114659,0.00021739,2]
[374716496,1753426247620,-230.114659,0.00021739,2]
[374716498,1753426247630,-1749.0963561,0.00021762,5]
[374716501,1753426247640,-223.0315306,0.00021827,2]
[374716503,1753426247650,-371.2,0.00021832,4]
[374716504,1753426247659,-151.0,0.0002184,2]
[374716507,1753426247669,-151.0,0.0002184,2]
[374716508,1753426247679,-500.0,0.00021917,2]
[374716510,1753426247688,-500.0,0.00021917,2]
[374716512,1753426247698,-500.0,0.00021917,2]
[374716515,1753426247707,-500.0,0.00021917,2]
[374716517,1753426247717,-500.0,0.00021917,2]
[374716519,1753426247727,-500.0,0.00021917,2]
[374716520,1753426247740,-500.0,0.00021917,2]
[374716522,1753426247751,-500.0,0.00021917,2]
[374716525,1753426247761,-500.0,0.00021917,2]
[374716527,1753426247772,-500.0,0.00021917,2]
[374716529,1753426247781,-500.0,0.00021917,2]
[374716531,1753426247791,-500.0,0.00021917,2]
[374716533,1753426247801,-500.0,0.00021917,2]
[374716535,1753426247811,-500.0,0.00021917,2]
[374716537,1753426247822,-500.0,0.00021917,2]
[374716539,1753426247831,-500.0,0.00021917,2]
[374716541,1753426247841,-500.0,0.00021917,2]
[374716543,1753426247850,-500.0,0.00021917,2]
[374716545,1753426247860,-500.0,0.00021964,2]
[374716547,1753426247870,-7384.9899832,0.00021984,2]
[374716549,1753426247879,-957.34308301,0.00021984,2]
[374716551,1753426247889,-163.0,0.00022,5]
[374716553,1753426247898,-151.0,0.00022,7]
[374716555,1753426247910,-151.0,0.00022,7]
[374716557,1753426247919,-151.0,0.00022,7]
[374716559,1753426247930,-151.0,0.00022,4]
[374716561,1753426247940,-814.88,0.00022,2]
[374716563,1753426247950,-150.0,0.00022,2]
[374716565,1753426247960,-179.87408814,0.00022005,2]
[374716567,1753426247969,-632.997652,0.00022013,8]
[374716569,1753426247979,-1749.0963561,0.00022038,6]
[374716571,1753426247988,-234.90249478,0.00022043,2]
[374716573,1753426248001,-151.0,0.000221,6]
[374716575,1753426248010,-2033.56,0.00022158,2]
[374716577,1753426248020,-823.0,0.00022176,2]
[374716579,1753426248030,-150.0,0.00022192,7]
[374716582,1753426248040,-348.2323324,0.00022238,2]
[374716583,1753426248049,-760.0,0.00022258,2]
[374716586,1753426248059,-151.0,0.000223,5]
[374716588,1753426248068,-1749.0963561,0.00022314,7]
[374716590,1753426248078,-500.0,0.00022339,2]
[374716592,1753426248088,-500.0,0.00022339,2]
[374716594,1753426248097,-371.2,0.00022364,5]
[374716596,1753426248107,-191.0,0.00022383,2]
[374716598,1753426248117,-191.0,0.00022448,2]
[374716600,1753426248126,-225.404454,0.00022454,7]
[374716602,1753426248136,-162.656309,0.00022454,7]
[374716604,1753426248146,-162.656309,0.00022454,7]
[374716606,1753426248155,-411.166702,0.00022454,7]
[374716608,1753426248164,-411.166702,0.00022454,7]
[374716610,1753426248174,-403.717311,0.00022454,7]
[374716612,1753426248183,-403.717311,0.00022454,7]
[374716614,1753426248193,-72910.62791524,0.00022463,2]
[374716848,1753426251509,6332.82506294,0.00016924,2]
[374716850,1753426251533,10000.0,0.00016924,2]
[374716851,1753426251557,10000.0,0.00016924,2]
[374716852,1753426251581,10000.0,0.00016924,2]
[374716853,1753426251605,10000.0,0.00016924,2]
[374716854,1753426251628,10000.0,0.00016924,2]
[374716855,1753426251651,10000.0,0.00016924,2]
[374716856,1753426251674,10000.0,0.00016924,2]
[374716857,1753426251697,10000.0,0.00016924,2]
[374716858,1753426251721,3667.17493706,0.00016924,2]
[374717610,1753426380349,583.37231,0.00013699,2]
[374717612,1753426406545,5749.45275294,0.0001603,2]
[374717613,1753426406569,4250.54724706,0.0001603,2]
[374717614,1753426411494,176.1768711,0.00016928,2]
[374717615,1753426426419,5000.0,0.00017,2]
[374717617,1753426442972,573.27588184,0.00017,2]
[374717618,1753426443002,4426.72411816,0.00017,2]
[374717619,1753426459931,5000.0,0.00017,2]
[374717620,1753426477069,573.27588184,0.00017,2]
[374717621,1753426477095,4426.72411816,0.00017,2]
[374717622,1753426492385,5000.0,0.00017,2]
[374717623,1753426511466,573.27588184,0.00017,2]
[374717624,1753426511492,4426.72411816,0.00017,2]
[374717625,1753426526960,5000.0,0.00017,2]
[374717626,1753426531843,188.13149748,0.00016922,2]
[374717627,1753426532209,188.13149748,0.00016923,2]
[374717628,1753426532579,188.13149748,0.00016924,2]
[374717629,1753426532975,8.8813894,0.00016924,2]
[374717630,1753426533001,179.25010808,0.00016924,2]
[374717631,1753426533389,188.13149748,0.00016925,2]
[374717632,1753426544898,5000.0,0.00017,2]
[374717634,1753426562863,4632.61839444,0.00017,2]
[374717635,1753426562892,367.38160556,0.00017,2]
[374717636,1753426578895,5000.0,0.00017,2]
[374717638,1753426595678,4632.61839444,0.00017,2]
[374717639,1753426595707,367.38160556,0.00017,2]
[374717640,1753426596584,159.904094,0.00016512,2]
[374717641,1753426596925,197.803788,0.00016513,2]
[374717642,1753426597264,558.88302186,0.00016514,2]
[374717643,1753426597589,279.44151093,0.00016517,2]
[374717644,1753426611491,5000.0,0.00017,2]
[374717645,1753426618254,460.99157349,0.00017032,7]
[374717646,1753426627219,3436.58597965,0.00017,2]
[374717647,1753426627246,1563.41402035,0.00017,2]
[374717648,1753426642957,5000.0,0.00017,2]
[374717649,1753426646757,152.68662162,0.00016925,2]
[374717650,1753426651388,3283.89935803,0.00016027,2]
[374717651,1753426651415,6456.89493077,0.00016027,2]
[374717653,1753426677695,2181.9005249,0.00016154,2]
[374717654,1753426678399,1361.20454433,0.00016154,2]
[374717655,1753426678426,178.99415987,0.00016154,2]
[374717656,1753426694845,202.4775096,0.00016921,2]
[374717661,1753426858190,151.0,0.00017,2]
[374717662,1753426861139,151.0,0.00017,2]
[374717663,1753426899918,259.32399694,0.00016511,2]
[374717664,1753426922794,9057.20433359,0.00016025,2]
[374717665,1753426922821,10000.0,0.00016025,2]
[374717666,1753426922847,5842.79566641,0.00016025,2]
[374717669,1753426973553,199.33790215,0.00016923,2]
[374717670,1753427002275,249.88351,0.00016024,2]
[374717672,1753427161381,151.0,0.00017,2]
[374717673,1753427163189,232.59100868,0.00017,2]
[374717678,1753427264912,166.0,0.00016438,2]
[374717739,1753427432302,-300.0,0.00017017,2]
[374717741,1753427432312,-300.0,0.00017017,2]
[374717743,1753427432322,-300.0,0.00017017,2]
[374717745,1753427432332,-300.0,0.00017017,2]
[374717747,1753427432341,-300.0,0.00017017,2]
[374717749,1753427432352,-500.0,0.00017017,2]
[374717751,1753427432361,-1200.0,0.00017019,2]
[374717752,1753427432372,-460.0,0.00017019,2]
[374717754,1753427432383,-0.34219059,0.00017019,2]
[374717822,1753427438243,-401.42757738,0.00017017,2]
[374717823,1753427438256,-98.57242262,0.00017017,2]
[374717825,1753427438266,-164.10071046,0.00017017,2]
[374717828,1753427438288,-28.62702192,0.00017017,2]
[374717829,1753427438301,-471.37297808,0.00017017,2]
[374717831,1753427438311,-304.14721338,0.00017017,2]
[374717832,1753427438321,-500.0,0.00017017,2]
[374717834,1753427438332,-330.61645955,0.00017017,2]
[374717836,1753427438343,-500.0,0.00017017,2]
[374717838,1753427438354,-500.0,0.00017017,2]
[374717841,1753427438364,-500.0,0.00017017,2]
[374717842,1753427438375,-500.0,0.00017017,2]
[374717843,1753427438388,-564.78158896,0.00017017,2]
[374717844,1753427438399,-500.0,0.00017017,2]
[374717845,1753427438410,-500.0,0.00017017,2]
[374717846,1753427438420,-500.0,0.00017017,2]
[374717847,1753427438431,-500.0,0.00017017,2]
[374717848,1753427438441,-500.0,0.00017017,2]
[374717849,1753427438451,-435.15943595,0.00017017,2]
[374717850,1753427438462,-492.92363239,0.00017017,2]
[374717851,1753427438473,-500.0,0.00017017,2]
[374717852,1753427438483,-500.0,0.00017017,2]
[374717853,1753427438493,-500.0,0.00017017,2]
[374717854,1753427438503,-500.0,0.00017017,2]
[374717855,1753427438514,-500.0,0.00017017,2]
[374717856,1753427438524,-500.0,0.00017017,2]
[374717857,1753427438534,-317.18830675,0.00017017,2]
[374717858,1753427438545,-500.0,0.00017017,2]
[374717859,1753427438555,-500.0,0.00017017,2]
[374717860,1753427438566,-459.65780941,0.00017019,2]
[374717861,1753427438576,-460.0,0.00017019,2]
[374717862,1753427438586,-460.0,0.0001702,2]
[374717863,1753427438595,-460.0,0.0001702,2]
[374717864,1753427438605,-206.61217125,0.0001702,2]
[374717865,1753427438615,-1362.1,0.0001702,2]
[374717866,1753427438624,-460.0,0.0001702,2]
[374717867,1753427438634,-461.05531802,0.0001702,2]
[374717868,1753427438644,-460.0,0.0001702,2]
[374717869,1753427438653,-460.0,0.0001702,2]
[374717870,1753427438663,-461.9755918,0.0001702,2]
[374717871,1753427438673,-460.0,0.0001702,2]
[374717872,1753427438683,-460.0,0.0001702,2]
[374717873,1753427438692,-460.0,0.0001702,2]
[374717874,1753427438702,-460.0,0.0001702,2]
[374717875,1753427438711,-460.0,0.0001702,2]
[374717876,1753427438721,-460.0,0.0001702,2]
[374717877,1753427438731,-462.14932014,0.0001702,2]
[374717878,1753427438741,-460.0,0.0001702,2]
[374717879,1753427438750,-460.0,0.0001702,2]
[374717880,1753427438760,-460.0,0.0001702,2]
[374717881,1753427438770,-461.2799975,0.0001702,2]
[374717882,1753427438779,-463.1537445,0.0001702,2]
[374717883,1753427438789,-460.0,0.0001702,2]
[374717884,1753427438798,-460.0,0.0001702,2]
[374717885,1753427438808,-460.0,0.0001702,2]
[374717886,1753427438818,-575.88,0.0001702,2]
[374717887,1753427438828,-460.0,0.0001702,2]
[374717888,1753427438838,-434.32472224,0.0001702,2]
[374717889,1753427438847,-460.0,0.0001702,2]
[374717890,1753427438857,-460.0,0.0001702,2]
[374717891,1753427438867,-460.0,0.0001702,2]
[374717892,1753427438876,-460.0,0.0001702,2]
[374717893,1753427438886,-216.15244805,0.0001702,2]
[374717894,1753427438896,-460.0,0.0001702,2]
[374717895,1753427438906,-576.18114203,0.00017021,2]
[374717896,1753427438916,-460.0,0.00017021,2]
[374717897,1753427438925,-460.0,0.00017021,2]
[374717898,1753427438935,-460.0,0.00017021,2]
[374717899,1753427438945,-461.89867303,0.00017021,2]
[374717900,1753427438955,-460.0,0.00017021,2]
[374717901,1753427438966,-460.0,0.00017021,2]
[374717902,1753427438976,-460.0,0.00017021,2]
[374717903,1753427438987,-460.0,0.00017021,2]
[374717904,1753427438998,-460.0,0.00017021,2]
[374717905,1753427439008,-460.0,0.00017021,2]
[374717906,1753427439018,-460.0,0.00017021,2]
[374717907,1753427439027,-19455.54,0.00017021,2]
[374717908,1753427439038,-466.25409995,0.00017022,2]
[374717909,1753427439047,-407.54511307,0.00017022,2]
[374717910,1753427439059,-460.0,0.00017022,2]
[374717911,1753427439069,-460.0,0.00017022,2]
[374717912,1753427439080,-535.91,0.00017022,2]
[374717913,1753427439091,-460.0,0.00017022,2]
[374717914,1753427439106,-460.0,0.00017022,2]
[374717915,1753427439116,-460.0,0.00017022,2]
[374717916,1753427439125,-460.0,0.00017022,2]
[374717917,1753427439135,-460.0,0.00017022,2]
[374717918,1753427439146,-460.0,0.00017022,2]
[374717919,1753427439155,-460.0,0.00017022,2]
[374717920,1753427439165,-460.0,0.00017022,2]
[374717921,1753427439176,-460.0,0.00017022,2]
[374717922,1753427439186,-460.0,0.00017022,2]
[374717923,1753427439196,-460.0,0.00017022,2]
[374717924,1753427439206,-506.07,0.00017022,2]
[374717925,1753427439215,-465.2871269,0.00017022,2]
[374717926,1753427439225,-460.0,0.00017022,2]
[374717927,1753427439234,-460.0,0.00017022,2]
[374717928,1753427439244,-460.0,0.00017022,2]
[374717929,1753427439254,-460.0,0.00017022,2]
[374717930,1753427439263,-460.0,0.00017022,2]
[374717931,1753427439273,-460.0,0.00017022,2]
[374717932,1753427439283,-460.0,0.00017022,2]
[374717933,1753427439294,-460.0,0.00017023,2]
[374717934,1753427439304,-460.0,0.00017023,2]
[374717935,1753427439314,-460.0,0.00017023,2]
[374717936,1753427439324,-460.0,0.00017023,2]
[374717937,1753427439333,-460.0,0.00017023,2]
[374717938,1753427439343,-460.0,0.00017023,2]
[374717939,1753427439358,-460.0,0.00017023,2]
[374717940,1753427439368,-460.0,0.00017023,2]
[374717941,1753427439378,-465.00507131,0.00017023,2]
[374717942,1753427439389,-460.0,0.00017023,2]
[374717943,1753427439399,-460.0,0.00017023,2]
[374717944,1753427439408,-460.0,0.00017023,2]
[374717945,1753427439418,-460.0,0.00017023,2]
[374717946,1753427439428,-412.96569286,0.00017023,2]
[374717947,1753427439438,-460.0,0.00017023,2]
[374717948,1753427439448,-282.34658908,0.00017023,2]
[374717949,1753427439458,-460.0,0.00017023,2]
[374717950,1753427439468,-460.0,0.00017023,2]
[374717951,1753427439478,-460.0,0.00017023,2]
[374717952,1753427439488,-460.0,0.00017023,2]
[374717953,1753427439498,-460.0,0.00017023,2]
[374717954,1753427439508,-592.64,0.00017023,2]
[374717955,1753427439517,-460.0,0.00017023,2]
[374717956,1753427439527,-460.0,0.00017023,2]
[374717957,1753427439538,-460.0,0.00017023,2]
[374717958,1753427439549,-460.0,0.00017023,2]
[374717959,1753427439559,-460.0,0.00017023,2]
[374717960,1753427439568,-500.0,0.00017023,2]
[374717961,1753427439578,-500.0,0.00017023,2]
[374717962,1753427439588,-500.0,0.00017023,2]
[374717963,1753427439597,-297.63091589,0.00017024,2]
[374717964,1753427439607,-584.91,0.00017024,2]
[374717965,1753427439616,-460.0,0.00017024,2]
[374717966,1753427439626,-460.0,0.00017024,2]
[374717967,1753427439635,-501.80920377,0.00017024,2]
[374717968,1753427439645,-460.0,0.00017024,2]
[374717969,1753427439655,-460.0,0.00017024,2]
[374717970,1753427439664,-460.0,0.00017024,2]
[374717971,1753427439673,-267.04968769,0.00017024,2]
[374717972,1753427439683,-550.2386187,0.00017024,2]
[374717973,1753427439693,-460.0,0.00017024,2]
[374717974,1753427439703,-460.0,0.00017024,2]
[374717975,1753427439712,-460.0,0.00017024,2]
[374717976,1753427439722,-460.0,0.00017024,2]
[374717977,1753427439732,-277.97029059,0.00017024,2]
[374717978,1753427439742,-460.0,0.00017024,2]
[374717979,1753427439751,-150.50456212,0.00017024,2]
[374717980,1753427439761,-460.0,0.00017024,2]
[374717981,1753427439771,-460.0,0.00017024,2]
[374717982,1753427439780,-468.17988534,0.00017024,2]
[374717983,1753427439790,-461.11416517,0.00017024,2]
[374717984,1753427439799,-460.0,0.00017024,2]
[374717985,1753427439810,-460.0,0.00017024,2]
[374717986,1753427439820,-591.48153014,0.00017024,2]
[374717987,1753427439830,-460.0,0.00017024,2]
[374717988,1753427439839,-460.59776309,0.00017024,2]
[374717989,1753427439849,-460.0,0.00017024,2]
[374717990,1753427439859,-460.0,0.00017024,2]
[374717991,1753427439869,-460.0,0.00017024,2]
[374717992,1753427439878,-460.0,0.00017024,2]
[374717993,1753427439887,-460.0,0.00017024,2]
[374717994,1753427439897,-460.0,0.00017024,2]
[374717995,1753427439907,-460.0,0.00017024,2]
[374717996,1753427439917,-461.98563923,0.00017024,2]
[374717997,1753427439927,-460.0,0.00017024,2]
[374717998,1753427439937,-460.0,0.00017024,2]
[374717999,1753427439946,-460.0,0.00017024,2]
[374718000,1753427439955,-436.0328211,0.00017024,2]
[374718001,1753427439965,-460.0,0.00017024,2]
[374718002,1753427439974,-460.0,0.00017024,2]
[374718003,1753427439985,-460.0,0.00017024,2]
[374718005,1753427439995,-460.84153596,0.00017024,2]
[374718006,1753427440005,-460.0,0.00017024,2]
[374718007,1753427440015,-461.1752884,0.00017024,2]
[374718008,1753427440025,-460.0,0.00017024,2]
[374718009,1753427440034,-460.77726174,0.00017024,2]
[374718010,1753427440047,-460.0,0.00017024,2]
[374718011,1753427440056,-460.0,0.00017024,2]
[374718012,1753427440066,-460.0,0.00017024,2]
[374718014,1753427440075,-460.0,0.00017024,2]
[374718016,1753427440085,-460.0,0.00017024,2]
[374718018,1753427440095,-460.0,0.00017024,2]
[374718020,1753427440110,-460.0,0.00017024,2]
[374718022,1753427440120,-460.0,0.00017024,2]
[374718024,1753427440129,-460.0,0.00017024,2]
[374718026,1753427440140,-216.35,0.00017024,2]
[374718028,1753427440151,-460.0,0.00017024,2]
[374718030,1753427440161,-460.0,0.00017024,2]
[374718032,1753427440172,-460.0,0.00017024,2]
[374718034,1753427440181,-460.0,0.00017024,2]
[374718036,1753427440191,-460.0,0.00017024,2]
[374718039,1753427440201,-460.0,0.00017024,2]
[374718041,1753427440210,-460.0,0.00017024,2]
[374718042,1753427440219,-460.0,0.00017024,2]
[374718045,1753427440229,-460.0,0.00017024,2]
[374718047,1753427440238,-460.0,0.00017024,2]
[374718049,1753427440248,-460.0,0.00017024,2]
[374718051,1753427440258,-460.0,0.00017024,2]
[374718053,1753427440267,-460.0,0.00017024,2]
[374718055,1753427440279,-461.10333308,0.00017024,2]
[374718057,1753427440290,-460.0,0.00017024,2]
[374718059,1753427440300,-460.0,0.00017024,2]
[374718061,1753427440311,-491.61667399,0.00017024,2]
[374718063,1753427440320,-460.0,0.00017024,2]
[374718065,1753427440330,-460.0,0.00017024,2]
[374718067,1753427440340,-460.0,0.00017024,2]
[374718069,1753427440349,-460.0,0.00017024,2]
[374718071,1753427440359,-460.0,0.00017024,2]
[374718073,1753427440368,-460.0,0.00017024,2]
[374718075,1753427440378,-460.0,0.00017024,2]
[374718077,1753427440388,-270.24758417,0.00017024,2]
[374718079,1753427440398,-460.0,0.00017024,2]
[374718081,1753427440408,-500.0,0.00017024,2]
[374718083,1753427440417,-500.0,0.00017024,2]
[374718085,1753427440429,-460.0,0.00017024,2]
[374718088,1753427440440,-462.59686551,0.00017024,2]
[374718090,1753427440451,-460.0,0.00017024,2]
[374718091,1753427440460,-460.0,0.00017024,2]
[374718094,1753427440470,-460.0,0.00017024,2]
[374718096,1753427440480,-460.0,0.00017024,2]
[374718098,1753427440489,-460.0,0.00017024,2]
[374718100,1753427440500,-460.0,0.00017024,2]
[374718102,1753427440510,-460.0,0.00017024,2]
[374718104,1753427440519,-460.0,0.00017024,2]
[374718106,1753427440529,-500.0,0.00017025,2]
[374718107,1753427440540,-496.88385655,0.00017025,2]
[374718109,1753427440550,-460.0,0.00017025,2]
[374718111,1753427440560,-460.0,0.00017025,2]
[374718113,1753427440569,-460.0,0.00017025,2]
[374718115,1753427440579,-460.0,0.00017025,2]
[374718117,1753427440588,-474.86710087,0.00017025,2]
[374718119,1753427440598,-460.0,0.00017025,2]
[374718121,1753427440607,-460.0,0.00017025,2]
[374718123,1753427440617,-460.0,0.00017025,2]
[374718125,1753427440626,-460.0,0.00017025,2]
[374718127,1753427440639,-460.0,0.00017025,2]
[374718129,1753427440649,-598.93231208,0.00017025,2]
[374718132,1753427440659,-460.0,0.00017025,2]
[374718133,1753427440670,-467.87332986,0.00017025,2]
[374718136,1753427440680,-463.42107467,0.00017025,2]
[374718138,1753427440690,-460.0,0.00017025,2]
[374718140,1753427440701,-460.0,0.00017025,2]
[374718142,1753427440711,-466.42546442,0.00017025,2]
[374718144,1753427440721,-460.0,0.00017025,2]
[374718145,1753427440731,-460.0,0.00017025,2]
[374718148,1753427440742,-562.72875358,0.00017025,2]
[374718150,1753427440752,-461.1969197,0.00017025,2]
[374718151,1753427440762,-460.0,0.00017025,2]
[374718154,1753427440772,-460.0,0.00017025,2]
[374718156,1753427440782,-463.32740793,0.00017025,2]
[374718158,1753427440792,-462.50203275,0.00017025,2]
[374718160,1753427440801,-460.0,0.00017025,2]
[374718162,1753427440810,-460.0,0.00017025,2]
[374718164,1753427440820,-460.0,0.00017025,2]
[374718166,1753427440830,-460.0,0.00017025,2]
[374718168,1753427440840,-460.0,0.00017025,2]
[374718170,1753427440849,-463.39949777,0.00017025,2]
[374718172,1753427440859,-460.0,0.00017025,2]
[374718174,1753427440870,-502.1552402,0.00017025,2]
[374718176,1753427440880,-460.0,0.00017025,2]
[374718178,1753427440890,-463.5193307,0.00017025,2]
[374718180,1753427440900,-460.0,0.00017025,2]
[374718182,1753427440909,-460.0,0.00017025,2]
[374718184,1753427440919,-460.0,0.00017025,2]
[374718186,1753427440930,-460.0,0.00017025,2]
[374718188,1753427440941,-460.0,0.00017028,2]
[374718190,1753427440951,-460.0,0.00017028,2]
[374718192,1753427440962,-464.07940369,0.00017028,2]
[374718194,1753427440972,-460.0,0.00017028,2]
[374718196,1753427440981,-460.0,0.00017028,2]
[374718198,1753427440990,-437.44490467,0.00017028,2]
[374718200,1753427441000,-180.72824485,0.00017028,2]
[374718202,1753427441011,-460.0,0.00017028,2]
[374718204,1753427441021,-460.0,0.00017028,2]
[374718206,1753427441031,-460.0,0.00017028,2]
[374718208,1753427441042,-462.9335632,0.00017028,2]
[374718210,1753427441052,-460.0,0.00017028,2]
[374718212,1753427441062,-460.0,0.00017028,2]
[374718214,1753427441072,-460.0,0.00017028,2]
[374718216,1753427441082,-460.0,0.00017028,2]
[374718218,1753427441092,-460.0,0.00017028,2]
[374718220,1753427441108,-460.0,0.00017028,2]
[374718222,1753427441117,-460.0,0.00017028,2]
[374718224,1753427441126,-461.71567939,0.00017028,2]
[374718226,1753427441136,-489.37495666,0.00017028,2]
[374718229,1753427441147,-460.0,0.00017028,2]
[374718231,1753427441156,-460.0,0.00017028,2]
[374718233,1753427441166,-460.0,0.00017032,2]
[374718235,1753427441177,-460.0,0.00017032,2]
[374718237,1753427441187,-470.56178733,0.00017032,2]
[374718239,1753427441197,-460.0,0.00017032,2]
[374718241,1753427441207,-460.0,0.00017032,2]
[374718243,1753427441216,-463.64325318,0.00017032,2]
[374718259,1753427441358,-460.0,0.00017032,2]
[374718261,1753427441369,-460.0,0.00017032,2]
[374718263,1753427441380,-460.0,0.00017032,2]
[374718265,1753427441390,-460.0,0.00017032,2]
[374718267,1753427441400,-460.0,0.00017032,2]
[374718269,1753427441409,-460.0,0.00017032,2]
[374718271,1753427441419,-460.0,0.00017032,2]
[374718273,1753427441429,-460.0,0.00017032,2]
[374718275,1753427441438,-460.0,0.00017032,2]
[374718277,1753427441448,-460.0,0.00017032,2]
[374718279,1753427441457,-460.0,0.00017032,2]
[374718281,1753427441467,-460.0,0.00017032,2]
[374718283,1753427441477,-460.0,0.00017032,2]
[374718285,1753427441486,-460.0,0.00017032,2]
[374718287,1753427441496,-461.47143803,0.00017032,2]
[374718289,1753427441506,-460.0,0.00017032,2]
[374718291,1753427441515,-460.0,0.00017032,2]
[374718293,1753427441525,-500.0,0.00017032,2]
[374718295,1753427441535,-460.0,0.00017032,2]
[374718297,1753427441544,-460.0,0.00017032,2]
[374718299,1753427441554,-460.0,0.00017032,2]
[374718301,1753427441563,-460.0,0.00017032,2]
[374718303,1753427441573,-460.0,0.00017032,2]
[374718305,1753427441583,-460.0,0.00017032,2]
[374718307,1753427441592,-460.0,0.00017032,2]
[374718309,1753427441602,-460.0,0.00017032,2]
[374718311,1753427441611,-460.0,0.00017032,2]
[374718313,1753427441621,-602.76974205,0.00017032,2]
[374718315,1753427441631,-460.0,0.00017032,2]
[374718317,1753427441641,-460.0,0.00017032,2]
[374718319,1753427441652,-460.0,0.00017032,2]
[374718321,1753427441661,-460.0,0.00017032,2]
[374718323,1753427441671,-500.0,0.00017032,2]
[374718325,1753427441680,-460.0,0.00017032,2]
[374718327,1753427441690,-460.0,0.00017032,2]
[374718329,1753427441699,-461.80722809,0.00017032,2]
[374718331,1753427441710,-463.38656064,0.00017032,2]
[374718333,1753427441719,-460.0,0.00017032,2]
[374718335,1753427441729,-460.0,0.00017032,2]
[374718337,1753427441739,-460.0,0.00017032,2]
[374718339,1753427441749,-460.0,0.00017032,2]
[374718342,1753427441759,-460.0,0.00017032,2]